bitfinex/quotes_BTCUSD_20251024
["timestamp","ask_amount","ask_price","bid_price","bid_amount"]
[1761289583611,0.19448024,111420.0,111410.0,0.39612025]
[1761289584193,0.19448024,111420.0,111410.0,0.08981901]
[1761289600757,0.19448024,111420.0,111410.0,0.39591031]
[1761289601338,0.17951709,111410.0,111400.0,0.00033793]
[1761289601596,0.18381969,111410.0,111400.0,0.00033793]
[1761289602318,0.18381969,111410.0,111400.0,0.30642923]
[1761289602527,0.18781969,111410.0,111400.0,0.30642923]
[1761289602762,0.18351709,111410.0,111400.0,0.30642923]
[1761289603393,0.18351709,111410.0,111400.0,0.00033793]
[1761289603918,0.18351709,111410.0,111400.0,0.30642923]
[1761289605103,0.18351709,111410.0,111400.0,0.00033793]
[1761289605375,0.18351709,111410.0,111400.0,0.30642923]
[1761289605596,0.18351709,111410.0,111400.0,0.00033793]
[1761289610887,0.48960839,111410.0,111400.0,0.00033793]
[1761289611153,0.49241241,111410.0,111400.0,0.00033793]
[1761289611555,0.18632113,111410.0,111400.0,0.00033793]
[1761289611790,0.49241243,111410.0,111400.0,0.00033793]
[1761289615299,0.48960839,111410.0,111400.0,0.00033793]
[1761289618294,0.64788839,111410.0,111400.0,0.00033793]
[1761289618910,0.5242392,111410.0,111400.0,0.00033793]
[1761289619183,1.44212096,111410.0,111400.0,0.00033793]
[1761289619388,1.44212096,111410.0,111380.0,0.01537207]
[1761289619389,0.17954933,111390.0,111380.0,0.01537207]
[1761289619593,0.48994323,111390.0,111380.0,0.01537207]
[1761289619770,0.48564063,111390.0,111380.0,0.01537207]
[1761289620301,0.64392063,111390.0,111380.0,0.01537207]
[1761289620572,0.65289345,111390.0,111380.0,0.01537207]
[1761289620787,0.64392063,111390.0,111380.0,0.01537207]
[1761289621907,0.17958157,111370.0,111360.0,0.28484337]
[1761289622137,0.1795977,111360.0,111350.0,0.19194579]
[1761289622255,0.17958157,111370.0,111350.0,0.19243056]
[1761289622490,0.18388417,111370.0,111350.0,0.19243056]
[1761289623115,0.18388417,111370.0,111360.0,0.09081901]
[1761289623329,0.18388417,111370.0,111360.0,0.70300161]
[1761289624357,0.18388417,111370.0,111360.0,0.09081901]
[1761289624565,0.18388417,111370.0,111360.0,0.70200161]
[1761289625456,0.18488417,111370.0,111360.0,0.70200161]
[1761289625658,0.18488417,111370.0,111360.0,0.70300161]
[1761289625839,0.18488417,111370.0,111360.0,0.70435389]
[1761289626432,0.18488417,111370.0,111360.0,0.88395159]
[1761289626819,0.18488417,111370.0,111360.0,0.70435389]
[1761289630778,0.18488417,111370.0,111360.0,0.09217129]
[1761289630979,0.18488417,111370.0,111360.0,0.39826259]
[1761289632658,0.18488417,111370.0,111360.0,0.09217129]
[1761289632849,0.18488417,111370.0,111360.0,0.39826259]
[1761289633369,0.18488417,111370.0,111360.0,0.11911589]
[1761289633580,0.18488417,111370.0,111360.0,0.42520719]
[1761289633785,0.18488417,111370.0,111360.0,0.11911589]
[1761289633923,0.18488417,111370.0,111360.0,0.42520719]
[1761289634511,0.49097547,111370.0,111360.0,0.00235228]
[1761289634810,0.18058157,111370.0,111360.0,0.00235228]
[1761289635115,0.49097547,111370.0,111360.0,0.00235228]
[1761289635245,0.48667287,111370.0,111360.0,0.00235228]
[1761289635673,0.48567287,111370.0,111360.0,0.00135228]
[1761289636064,0.48767287,111370.0,111360.0,0.00135228]
[1761289636255,0.82567287,111370.0,111360.0,0.00135228]
[1761289636694,0.82867287,111370.0,111360.0,0.00135228]
[1761289637553,0.82867287,111370.0,111350.0,0.00383675]
[1761289637554,0.1795977,111360.0,111350.0,0.00383675]
[1761289637674,0.81820183,111360.0,111350.0,0.00383675]
[1761289637880,0.81389923,111360.0,111350.0,0.00383675]
[1761289638086,0.81389923,111360.0,111350.0,0.00417491]
[1761289638722,0.81889923,111360.0,111350.0,0.00517491]
[1761289639092,0.81989923,111360.0,111350.0,0.00517491]
[1761289639728,1.25199182,111360.0,111350.0,0.00517491]
[1761289640156,0.94590052,111360.0,111350.0,0.00517491]
[1761289640360,1.25199182,111360.0,111350.0,0.00517491]
[1761289640919,0.94590052,111360.0,111350.0,0.00517491]
[1761289641078,1.25199182,111360.0,111350.0,0.00517491]
[1761289641759,1.25199233,111360.0,111350.0,0.00517491]
[1761289642526,0.17964609,111330.0,111320.0,0.0004]
[1761289642752,0.49003999,111330.0,111320.0,0.00048701]
[1761289643096,0.17964609,111330.0,111320.0,0.00150181]
[1761289643309,0.18394869,111330.0,111320.0,0.00150181]
[1761289643490,0.49003999,111330.0,111320.0,0.00150181]
[1761289643711,0.48573739,111330.0,111320.0,0.00150181]
[1761289644132,1.25782998,111330.0,111320.0,0.00150181]
[1761289644333,0.95173868,111330.0,111320.0,0.00150181]
[1761289644530,0.95373868,111330.0,111320.0,0.00150181]
[1761289644963,0.82773739,111330.0,111320.0,0.00150181]
[1761289645158,0.82573739,111330.0,111320.0,0.00150181]
[1761289645334,1.32573739,111330.0,111320.0,0.00150181]
[1761289645505,1.32973739,111330.0,111320.0,0.00150181]
[1761289651851,1.02364609,111330.0,111320.0,0.00150181]
[1761289652054,1.02364609,111330.0,111320.0,0.30759311]
[1761289652493,0.68364609,111330.0,111320.0,0.00150181]
[1761289652805,0.68364609,111330.0,111320.0,0.30759311]
[1761289656398,0.68364609,111330.0,111320.0,0.00150181]
[1761289658159,0.504,111330.0,111320.0,0.00150181]
[1761289658377,0.504,111330.0,111320.0,0.88316565]
[1761289658587,0.504,111330.0,111320.0,0.91011632]
[1761289659011,0.504,111330.0,111320.0,0.29793372]
[1761289659217,0.504,111330.0,111320.0,0.91011632]
[1761289659636,0.504,111330.0,111320.0,0.91111632]
[1761289660064,0.5,111330.0,111320.0,0.91111632]
[1761289660445,0.5,111330.0,111320.0,0.91211632]
[1761289661650,0.5,111330.0,111320.0,1.25211632]
[1761289662738,0.5,111330.0,111320.0,0.94636097]
[1761289682245,0.5,111330.0,111320.0,1.25278822]
[1761289684696,0.5,111330.0,111320.0,1.2889705]
[1761289691084,0.5,111330.0,111320.0,0.98254325]
[1761289692470,0.5,111330.0,111320.0,1.2889705]
[1761289693852,0.5,111330.0,111320.0,0.98254325]
[1761289696730,0.5,111330.0,111320.0,1.2889705]
[1761289699134,0.5,111330.0,111320.0,1.25278822]
[1761289699342,0.5,111330.0,111320.0,0.94636097]
[1761289700281,0.5,111330.0,111320.0,1.25278822]
[1761289704897,0.5,111330.0,111320.0,0.63993372]
[1761289705103,0.5,111330.0,111320.0,0.94636097]
[1761289706803,0.5,111330.0,111320.0,0.9194103]
[1761289707441,0.5,111330.0,111320.0,0.27298305]
[1761289707664,0.5,111330.0,111320.0,0.9194103]
[1761289709314,0.5,111330.0,111320.0,0.27298305]
[1761289709546,0.5,111330.0,111320.0,0.5794103]
[1761289710988,0.67964609,111330.0,111320.0,0.27298305]
[1761289711197,0.67964609,111330.0,111320.0,0.5794103]
[1761289711369,0.67964609,111330.0,111320.0,0.27298305]
[1761289712232,0.67964609,111330.0,111320.0,0.27098305]
[1761289712449,0.67964609,111330.0,111320.0,0.09132082]
[1761289715498,0.67964609,111330.0,111320.0,0.00150181]
[1761289717209,0.68064609,111330.0,111320.0,0.00150181]
[1761289718348,0.68064609,111330.0,111320.0,0.30792906]
[1761289718575,0.98707334,111330.0,111320.0,0.00150181]
[1761289718776,0.68064609,111330.0,111320.0,0.00150181]
[1761289718952,0.98707334,111330.0,111320.0,0.00150181]
[1761289719161,0.68064609,111330.0,111320.0,0.00150181]
[1761289720632,0.17966223,111320.0,111300.0,0.48342275]
[1761289720834,0.18398097,111310.0,111300.0,0.57329013]
[1761289721477,0.18398097,111310.0,111300.0,0.57396688]
[1761289722544,0.18398097,111310.0,111300.0,0.56996688]
[1761289722751,0.18398097,111310.0,111300.0,0.57019858]
[1761289723175,0.18398097,111310.0,111300.0,0.57219858]
[1761289723823,0.18398097,111310.0,111300.0,0.57119858]
[1761289724038,0.18398097,111310.0,111300.0,0.87885753]
[1761289724271,0.18398097,111310.0,111300.0,0.00372512]
[1761289724489,0.18398097,111310.0,111300.0,0.31038407]
[1761289725122,0.18398097,111310.0,111300.0,0.30938407]
[1761289725443,0.18398097,111310.0,111300.0,0.30738407]
[1761289726682,0.18398097,111310.0,111300.0,0.18041963]
[1761289726972,0.18398097,111310.0,111300.0,0.30738407]
[1761289727170,0.18398097,111310.0,111300.0,0.00072512]
[1761289727377,0.18398097,111310.0,111300.0,0.30738407]
[1761289730795,0.18398097,111310.0,111300.0,0.48707858]
[1761289731816,0.17966223,111320.0,111300.0,0.88355654]
[1761289732056,0.18396483,111320.0,111310.0,0.30665895]
[1761289732388,0.18396483,111320.0,111310.0,0.30699729]
[1761289733365,0.18496483,111320.0,111310.0,0.30699729]
[1761289734688,0.18066223,111320.0,111310.0,0.30699729]
[1761289735193,0.18496483,111320.0,111310.0,0.30699729]
[1761289736920,0.18496483,111320.0,111310.0,0.00033834]
[1761289737245,0.18496483,111320.0,111310.0,0.30699729]
[1761289737791,0.18419808,111320.0,111310.0,0.30699729]
[1761289739808,0.18419808,111320.0,111310.0,0.00033834]
[1761289740653,0.49085703,111320.0,111310.0,0.00033834]
[1761289740907,0.17989548,111320.0,111310.0,0.00033834]
[1761289741119,0.18419808,111320.0,111310.0,0.00033834]
[1761289741337,0.18419808,111320.0,111310.0,0.30699729]
[1761289764230,0.18419808,111320.0,111310.0,0.00033834]
[1761289764462,0.18419808,111320.0,111310.0,0.30699729]
[1761289764934,0.18419808,111320.0,111310.0,0.00033834]
[1761289765151,0.49085703,111320.0,111310.0,0.00033834]
[1761289765365,0.48655443,111320.0,111310.0,0.00033834]
[1761289765776,0.50594292,111320.0,111310.0,0.00033834]
[1761289766415,0.48655443,111320.0,111310.0,0.00033834]
[1761289777574,1.15539495,111320.0,111310.0,0.00033834]
[1761289777795,1.52849624,111320.0,111310.0,0.00033834]
[1761289778433,1.22183729,111320.0,111310.0,0.00033834]
[1761289778665,1.52849624,111320.0,111310.0,0.00033834]
[1761289778906,1.55631036,111320.0,111310.0,0.00033834]
[1761289779128,1.30921036,111320.0,111310.0,0.00033834]
[1761289782942,1.0026752,111320.0,111310.0,0.00033834]
[1761289783780,1.00267573,111320.0,111310.0,0.00033834]
[1761289784280,0.69589299,111320.0,111310.0,0.00033834]
[1761289784471,1.00267573,111320.0,111310.0,0.00033834]
[1761289784760,0.69589299,111320.0,111310.0,0.00033834]
[1761289785061,1.00267573,111320.0,111310.0,0.00033834]
[1761289788602,1.00267573,111320.0,111310.0,1e-08]
[1761289789178,1.09702573,111320.0,111310.0,1e-08]
[1761289790144,1.09802573,111320.0,111310.0,1e-08]
[1761289790378,1.09702573,111320.0,111310.0,1e-08]
[1761289790585,1.09602573,111320.0,111310.0,1e-08]
[1761289790802,0.79224299,111320.0,111310.0,1e-08]
[1761289792013,0.79324299,111320.0,111310.0,1e-08]
[1761289792161,0.51967837,111310.0,111300.0,4.837e-05]
[1761289792368,0.78979948,111310.0,111300.0,4.837e-05]
[1761289792767,0.79339529,111310.0,111300.0,4.837e-05]
[1761289793343,1.10117803,111310.0,111300.0,4.837e-05]
[1761289793527,1.10417803,111310.0,111300.0,0.00104837]
[1761289797185,0.79739529,111310.0,111300.0,0.00104837]
[1761289797389,1.10417803,111310.0,111300.0,0.00104837]
[1761289797723,1.10417803,111310.0,111300.0,0.00138676]
[1761289798910,1.14036031,111310.0,111300.0,0.00138676]
[1761289800765,1.1367645,111310.0,111300.0,0.00138676]
[1761289803476,1.14076011,111310.0,111300.0,0.00138676]
[1761289805179,1.16497896,111310.0,111300.0,0.00138676]
[1761289805600,1.4717617,111310.0,111300.0,0.00138676]
[1761289805811,0.82944227,111300.0,111290.0,0.0004]
[1761289806017,0.82944227,111300.0,111290.0,0.00044847]
[1761289806018,0.96564964,111300.0,111290.0,0.00044847]
[1761289806870,1.21274964,111300.0,111290.0,0.00044847]
[1761289807078,1.21574964,111300.0,111290.0,0.00144847]
[1761289809242,1.39991865,111300.0,111290.0,0.00144847]
[1761289809410,1.34228739,111300.0,111290.0,0.00144847]
[1761289810220,0.17972681,111280.0,111270.0,0.00419603]
[1761289810432,0.60285363,111280.0,111270.0,0.00419603]
[1761289810635,0.29176829,111280.0,111270.0,0.00419603]
[1761289810866,0.59855103,111280.0,111270.0,0.00419603]
[1761289811059,0.17974296,111270.0,111260.0,0.0004]
[1761289811389,0.17974296,111270.0,111260.0,0.00459603]
[1761289811890,0.17974296,111270.0,111260.0,0.00595013]
[1761289812178,0.18404556,111270.0,111260.0,0.00595013]
[1761289812392,0.18404556,111270.0,111260.0,0.00695013]
[1761289812619,0.18404556,111270.0,111260.0,0.00795013]
[1761289813031,0.18404556,111270.0,111260.0,0.00595013]
[1761289813243,0.18504556,111270.0,111260.0,0.00595013]
[1761289815153,0.4918283,111270.0,111260.0,0.00595013]
[1761289815372,0.4875257,111270.0,111260.0,0.00595013]
[1761289816280,0.18074296,111270.0,111260.0,0.00595013]
[1761289816521,0.18504556,111270.0,111260.0,0.00595013]
[1761289818142,0.4918283,111270.0,111260.0,0.00595013]
[1761289818345,0.4875257,111270.0,111260.0,0.00595013]
[1761289818766,0.18074296,111270.0,111260.0,0.00595013]
[1761289818970,0.18504556,111270.0,111260.0,0.00595013]
[1761289821341,0.18504556,111270.0,111260.0,0.00595013]
[1761289823243,0.18504556,111270.0,111240.0,0.49789655]
[1761289823244,0.17977528,111250.0,111240.0,0.49789655]
[1761289823574,0.17977528,111250.0,111240.0,0.5853823]
[1761289823721,0.17977528,111250.0,111240.0,0.57639273]
[1761289823925,0.18407788,111250.0,111240.0,0.39660175]
[1761289824323,0.18407788,111250.0,111240.0,0.42357527]
[1761289824527,0.18407788,111250.0,111240.0,0.11779253]
[1761289824792,0.18507788,111250.0,111240.0,0.42657527]
[1761289825822,0.18507788,111250.0,111240.0,0.11979253]
[1761289825936,0.18507788,111250.0,111240.0,0.42657527]
[1761289827648,0.18507788,111250.0,111240.0,0.60636671]
[1761289828703,0.18507788,111250.0,111240.0,0.42657527]
[1761289828905,0.18507788,111250.0,111240.0,0.60704401]
[1761289829811,0.18507788,111250.0,111240.0,0.42725257]
[1761289830651,0.18507788,111250.0,111240.0,0.60704401]
[1761289831860,0.18077528,111250.0,111240.0,0.12046983]
[1761289832055,0.18507788,111250.0,111240.0,0.12046983]
[1761289832290,0.18507788,111250.0,111240.0,0.42725257]
[1761289832458,0.18507788,111250.0,111240.0,0.33743356]
[1761289832667,0.18507788,111250.0,111240.0,0.03065082]
[1761289835381,0.18507788,111250.0,111240.0,0.33743356]
[1761289836015,0.18507788,111250.0,111240.0,0.33716251]
[1761289836367,0.18507788,111250.0,111240.0,0.03037977]
[1761289836594,0.18507788,111250.0,111240.0,0.33716251]
[1761289839844,0.83186062,111250.0,111240.0,0.0036773]
[1761289840119,0.5429466,111250.0,111240.0,0.0036773]
[1761289840656,0.5429466,111250.0,111240.0,0.0026773]
[1761289841081,0.5419466,111250.0,111240.0,0.0006773]
[1761289841252,0.66794789,111250.0,111240.0,0.0006773]
[1761289841460,0.97673063,111250.0,111240.0,0.0016773]
[1761289844868,0.97709775,111250.0,111240.0,0.0016773]
[1761289845502,1.52709775,111250.0,111240.0,0.0016773]
[1761289846733,1.83424761,111250.0,111240.0,0.0016773]
[1761289847144,1.85845387,111250.0,111240.0,0.0016773]
[1761289847686,1.85645387,111250.0,111240.0,0.0006773]
[1761289847894,0.55653642,111240.0,111230.0,0.00045434]
[1761289848127,1.46515273,111240.0,111230.0,1e-08]
[1761289848331,1.52432873,111240.0,111230.0,1e-08]
[1761289848536,1.36620873,111240.0,111230.0,1e-08]
[1761289848959,1.52444873,111240.0,111230.0,1e-08]
[1761289849257,1.18511112,111240.0,111230.0,1e-08]
[1761289849423,1.24259112,111240.0,111230.0,1e-08]
[1761289849601,1.30123567,111240.0,111230.0,1e-08]
[1761289849901,1.33342342,111240.0,111230.0,1e-08]
[1761289850106,1.33442342,111240.0,111230.0,1e-08]
[1761289850353,1.30623567,111240.0,111230.0,1e-08]
[1761289850700,1.24759112,111240.0,111230.0,1e-08]
[1761289851034,1.03187112,111240.0,111230.0,1e-08]
[1761289851190,1.19011112,111240.0,111230.0,1e-08]
[1761289851390,1.03187112,111240.0,111230.0,1e-08]
[1761289851619,1.19011112,111240.0,111230.0,1e-08]
[1761289852158,1.14654167,111240.0,111230.0,1e-08]
[1761289853217,1.17572409,111240.0,111230.0,1e-08]
[1761289853426,1.14654167,111240.0,111230.0,1e-08]
[1761289856319,1.18990965,111240.0,111230.0,1e-08]
[1761289859579,0.88276066,111240.0,111230.0,1e-08]
[1761289860860,0.72452066,111240.0,111230.0,1e-08]
[1761289861080,1.18987052,111240.0,111230.0,1e-08]
[1761289861291,1.18983052,111240.0,111230.0,1e-08]
[1761289861505,1.1657372,111240.0,111230.0,1e-08]
[1761289861910,1.0075772,111240.0,111230.0,1e-08]
[1761289862114,1.1657772,111240.0,111230.0,1e-08]
[1761289863256,1.16577701,111240.0,111230.0,1e-08]
[1761289863493,1.00757701,111240.0,111230.0,1e-08]
[1761289863703,1.13878876,111240.0,111230.0,1e-08]
[1761289864031,0.8316389,111240.0,111230.0,1e-08]
[1761289864235,0.85573222,111240.0,111230.0,1e-08]
[1761289864694,1.16288208,111240.0,111230.0,1e-08]
[1761289866880,0.85573222,111240.0,111230.0,1e-08]
[1761289867081,1.16288208,111240.0,111230.0,1e-08]
[1761289867285,1.19500651,111240.0,111230.0,1e-08]
[1761289867486,1.20000651,111240.0,111230.0,1e-08]
[1761289869095,1.17591319,111240.0,111230.0,1e-08]
[1761289869505,0.8302896,111230.0,111220.0,1.60005829]
[1761289869718,0.96634651,111230.0,111220.0,1.60020376]
[1761289869924,0.35204679,111230.0,111220.0,1.60020376]
[1761289870190,0.35204679,111230.0,111220.0,1.60054252]
[1761289870498,0.90629665,111230.0,111220.0,1.60054252]
[1761289870846,0.90829665,111230.0,111220.0,1.60054252]
[1761289874060,1.21544651,111230.0,111220.0,1.60054252]
[1761289875366,0.90829665,111230.0,111220.0,1.60054252]
[1761289875968,1.55544651,111230.0,111220.0,1.60054252]
[1761289876146,1.61160316,111230.0,111220.0,1.60054252]
[1761289876334,1.57947873,111230.0,111220.0,1.60054252]
[1761289878921,0.96517901,111230.0,111220.0,1.60054252]
[1761289879114,1.57947873,111230.0,111220.0,1.60054252]
[1761289879538,1.33237873,111230.0,111220.0,1.60054252]
[1761289881726,1.62361193,111230.0,111220.0,1.10937041]
[1761289881951,1.62361193,111230.0,111220.0,0.96426067]
[1761289882559,1.31646207,111230.0,111220.0,0.96426067]
[1761289885819,1.31546207,111230.0,111220.0,0.96426067]
[1761289886003,1.32046207,111230.0,111220.0,0.96426067]
[1761289890239,1.34464868,111230.0,111220.0,0.96426067]
[1761289891166,0.73034896,111230.0,111220.0,0.96426067]
[1761289891379,1.34464868,111230.0,111220.0,0.96426067]
[1761289891808,1.32046207,111230.0,111220.0,0.96426067]
[1761289892021,1.33637873,111230.0,111220.0,0.96426067]
[1761289892676,1.35939968,111230.0,111220.0,0.96426067]
[1761289894208,1.33637873,111230.0,111220.0,0.96426067]
[1761289895013,1.64352859,111230.0,111220.0,0.96426067]
[1761289895686,1.6517808,111230.0,111220.0,0.50751866]
[1761289895880,1.6517808,111230.0,111220.0,0.15008939]
[1761289896094,1.61953002,111230.0,111220.0,0.03253851]
[1761289896295,1.64652092,111230.0,111220.0,1e-08]
[1761289897042,1.73633993,111230.0,111220.0,1e-08]
[1761289897875,1.83091993,111230.0,111220.0,1e-08]
[1761289898908,1.83898263,111230.0,111220.0,1e-08]
[1761289899253,0.55600605,111220.0,111210.0,1e-08]
[1761289899462,0.21602222,111210.0,111200.0,0.0004]
[1761289899684,0.94222442,111210.0,111200.0,0.00054552]
[1761289899885,1.18932442,111210.0,111200.0,0.00054552]
[1761289900573,1.19132442,111210.0,111200.0,0.00054552]
[1761289901386,1.20014879,111210.0,111200.0,0.00054552]
[1761289901844,0.58584907,111210.0,111200.0,0.00054552]
[1761289902020,1.20014879,111210.0,111200.0,0.00122318]
[1761289903147,1.29304879,111210.0,111200.0,0.00122318]
[1761289904864,0.67874907,111210.0,111200.0,0.00122318]
[1761289905038,1.29364005,111210.0,111200.0,0.00122318]
[1761289905443,1.29083046,111210.0,111200.0,0.00122318]
[1761289905784,1.29364008,111210.0,111200.0,0.00122318]
[1761289906066,1.3178267,111210.0,111200.0,0.00122318]
[1761289906275,1.35007748,111210.0,111200.0,0.00122318]
[1761289907432,1.3178267,111210.0,111200.0,0.00122318]
[1761289907793,1.4760267,111210.0,111200.0,0.00122318]
[1761289908129,0.70293572,111210.0,111200.0,0.00122318]
[1761289908341,1.4760267,111210.0,111200.0,0.00122318]
[1761289910317,1.50827748,111210.0,111200.0,0.00122318]
[1761289911354,0.8933865,111210.0,111200.0,0.00122318]
[1761289911557,1.50827748,111210.0,111200.0,0.00122318]
[1761289912734,0.00899523,111170.0,111140.0,0.0004]
[1761289912943,1.17101028,111150.0,111140.0,0.00053103]
[1761289913143,1.28291418,111150.0,111140.0,0.00053103]
[1761289913352,0.9533838,111150.0,111140.0,0.00053103]
[1761289913568,0.97269851,111150.0,111140.0,0.00053103]
[1761289913780,0.51993702,111150.0,111140.0,0.00053103]
[1761289913958,0.17993702,111150.0,111140.0,0.00053103]
[1761289915772,0.18423962,111150.0,111140.0,0.00053103]
[1761289916492,0.49368511,111150.0,111140.0,0.00053103]
[1761289916690,0.48938251,111150.0,111140.0,0.00053103]
[1761289916894,0.49219315,111150.0,111140.0,0.00053103]
[1761289917697,0.18474766,111150.0,111140.0,0.00053103]
[1761289917898,0.48938251,111150.0,111140.0,0.00053103]
[1761289918296,0.4921931,111150.0,111140.0,0.00053103]
[1761289918679,0.4921931,111150.0,111140.0,0.00256529]
[1761289919080,0.48938251,111150.0,111140.0,0.00256529]
[1761289920763,0.18193702,111150.0,111140.0,0.00256529]
[1761289920959,0.48938251,111150.0,111140.0,0.00256529]
[1761289922391,0.49219307,111150.0,111140.0,0.00256529]
[1761289923224,0.61819436,111150.0,111140.0,0.00256529]
[1761289924074,0.49219307,111150.0,111140.0,0.00256529]
[1761289924452,0.18474758,111150.0,111140.0,0.00256529]
[1761289924666,0.49219307,111150.0,111140.0,0.00256529]
[1761289925429,0.18474758,111150.0,111140.0,0.00256529]
[1761289925678,0.49219307,111150.0,111140.0,0.00256529]
[1761289936809,0.18474758,111150.0,111140.0,0.00256529]
[1761289937020,0.49219307,111150.0,111140.0,0.00256529]
[1761289937900,0.49219307,111150.0,111140.0,0.02056061]
[1761289938111,0.18474758,111150.0,111140.0,0.00256529]
[1761289939660,0.18474758,111150.0,111140.0,0.1825185]
[1761289939869,0.18474758,111150.0,111140.0,0.00256529]
[1761289941367,0.20407318,111150.0,111140.0,0.00256529]
[1761289942758,0.51151867,111150.0,111140.0,0.00256529]
[1761289946631,0.20407318,111150.0,111140.0,0.00256529]
[1761289946868,0.51151867,111150.0,111140.0,0.00256529]
[1761289949175,1.30914766,111150.0,111140.0,0.00256529]
[1761289950510,1.30714766,111150.0,111140.0,0.00256529]
[1761289950763,0.87770088,111150.0,111140.0,0.00256529]
[1761289951605,0.57025539,111150.0,111140.0,0.00256529]
[1761289951823,0.87770088,111150.0,111140.0,0.00256529]
[1761289952673,1.18514637,111150.0,111140.0,0.00256529]
[1761289954707,1.18233581,111150.0,111140.0,0.00256529]
[1761289955144,1.49273611,111150.0,111140.0,0.00256529]
[1761289955361,1.51674055,111150.0,111140.0,0.00256529]
[1761289955796,1.42692154,111150.0,111140.0,0.00256529]
[1761289956022,1.42973276,111150.0,111140.0,0.00256529]
[1761289956463,1.45912509,111150.0,111140.0,0.00256529]
[1761289956906,1.46193631,111150.0,111140.0,0.00256529]
[1761289957903,1.45912509,111150.0,111140.0,0.00256529]
[1761289958098,1.5489441,111150.0,111140.0,0.00256529]
[1761289958440,1.45912509,111150.0,111140.0,0.00256529]
[1761289958666,1.62081631,111150.0,111140.0,0.00256529]
[1761289959067,1.61800509,111150.0,111140.0,0.00256529]
[1761289959587,1.56981844,111150.0,111140.0,0.00256529]
[1761289959802,0.79885868,111150.0,111140.0,0.00256529]
[1761289960027,1.57262966,111150.0,111140.0,0.00256529]
[1761289962198,0.95773868,111150.0,111140.0,0.00256529]
[1761289962431,1.57262966,111150.0,111140.0,0.00256529]
[1761289962871,1.01172417,111150.0,111140.0,0.00256529]
[1761289963083,1.13836062,111150.0,111140.0,0.00256529]
[1761289963282,1.23294062,111150.0,111140.0,0.00256529]
[1761289963523,1.13836062,111150.0,111140.0,0.00256529]
[1761289963947,1.44580611,111150.0,111140.0,0.00256529]
[1761289964088,1.46992158,111150.0,111140.0,0.00256529]
[1761289964292,1.44580611,111150.0,111140.0,0.00256529]
[1761289966824,1.44640581,111150.0,111140.0,0.00256529]
[1761289968979,1.47052128,111150.0,111140.0,0.00256529]
[1761289969191,1.44640581,111150.0,111140.0,0.00256529]
[1761289969398,1.47052128,111150.0,111140.0,0.00256529]
[1761289970070,1.77826662,111150.0,111140.0,0.00256529]
[1761289971053,1.47052128,111150.0,111140.0,0.00256529]
[1761289971258,1.81047017,111150.0,111140.0,0.00256529]
[1761289971891,1.50272483,111150.0,111140.0,0.00256529]
[1761289972541,1.81047017,111150.0,111140.0,0.00256529]
[1761289972753,1.90028918,111150.0,111140.0,0.00256529]
[1761289972948,1.81047017,111150.0,111140.0,0.00256529]
[1761289973179,1.50272483,111150.0,111140.0,0.00256529]
[1761289973394,1.810481,111150.0,111140.0,0.00256529]
[1761289974021,1.7863547,111150.0,111140.0,0.00256529]
[1761289974270,1.87617371,111150.0,111140.0,0.00256529]
[1761289974699,1.56842837,111150.0,111140.0,0.00256529]
[1761289975028,1.61661502,111150.0,111140.0,0.00256529]
[1761289975236,1.61659143,111150.0,111140.0,0.00256529]
[1761289975539,1.92433677,111150.0,111140.0,0.00256529]
[1761289975746,1.61659143,111150.0,111140.0,0.00256529]
[1761289977439,1.71117143,111150.0,111140.0,0.00256529]
[1761289983408,1.58914887,111150.0,111140.0,0.00256529]
[1761289984062,1.58914896,111150.0,111140.0,0.00256529]
[1761289985721,1.33572896,111150.0,111140.0,0.00256529]
[1761289985924,1.15885855,111150.0,111140.0,0.00256529]
[1761289986641,0.91015954,111150.0,111140.0,0.00256529]
[1761289986855,0.8779521,111150.0,111140.0,0.00256529]
[1761289987496,1.31169873,111150.0,111140.0,0.00256529]
[1761289991008,1.40151774,111150.0,111140.0,0.00256529]
[1761289991235,1.43372518,111150.0,111140.0,0.00256529]
[1761289991435,1.40956876,111150.0,111140.0,0.00256529]
[1761289992013,1.31974975,111150.0,111140.0,0.00256529]
[1761289994622,1.62749509,111150.0,111140.0,0.00256529]
[1761289994830,1.67568174,111150.0,111140.0,0.00256529]
[1761289995236,1.77026174,111150.0,111140.0,0.00256529]
[1761289995437,1.7380543,111150.0,111140.0,0.00256529]
[1761289995681,0.17995321,111140.0,111130.0,14.7529]
[1761289995907,1.43469231,111140.0,111130.0,14.75298731]
[1761289996052,1.43038971,111140.0,111130.0,14.75298731]
[1761289997049,1.43238971,111140.0,111130.0,14.75298731]
[1761289998197,1.43038971,111140.0,111130.0,14.75298731]
[1761289998408,1.43138971,111140.0,111130.0,14.75298731]
[1761289998628,1.43438971,111140.0,111130.0,14.75298731]
[1761290001326,0.51115369,111140.0,111130.0,14.75321847]
[1761290001536,1.27550971,111140.0,111130.0,14.75321847]
[1761290001751,1.16274665,111140.0,111130.0,14.75321847]
[1761290004431,1.00394665,111140.0,111130.0,14.75321847]
[1761290004897,1.16278665,111140.0,111130.0,14.75321847]
[1761290007404,1.16278665,111140.0,111130.0,14.75321847]
[1761290009470,0.97172485,111140.0,111130.0,14.75321847]
[1761290009646,1.00448356,111140.0,111130.0,14.75321847]
[1761290009863,0.84572356,111140.0,111130.0,14.75321847]
[1761290012328,0.97172485,111140.0,111130.0,14.75321847]
[1761290012798,1.27947019,111140.0,111130.0,14.75321847]
[1761290013428,0.97172485,111140.0,111130.0,14.75321847]
[1761290016263,1.27947019,111140.0,111130.0,14.75321847]
[1761290016467,1.31169199,111140.0,111130.0,14.75321847]
[1761290020585,1.28752564,111140.0,111130.0,14.75321847]
[1761290021223,1.31171657,111140.0,111130.0,14.75321847]
[1761290028155,1.28752564,111140.0,111130.0,14.75321847]
[1761290028517,1.00397424,111140.0,111130.0,14.75321847]
[1761290028860,0.69630711,111140.0,111130.0,14.75321847]
[1761290029261,0.67211317,111140.0,111130.0,14.75321847]
[1761290033150,0.83071317,111140.0,111130.0,14.75321847]
[1761290036115,0.27447061,111140.0,111130.0,14.75321847]
[1761290036321,0.7650498,111140.0,111130.0,14.75321847]
[1761290038540,0.6064898,111140.0,111130.0,14.75321847]
[1761290039572,0.60367849,111140.0,111130.0,14.75321847]
[1761290039752,0.60648966,111140.0,111130.0,14.75321847]
[1761290040941,0.29866611,111140.0,111130.0,14.75321847]
[1761290041148,0.60648966,111140.0,111130.0,14.75321847]
[1761290050256,0.57030738,111140.0,111130.0,14.75321847]
[1761290060896,0.56749621,111140.0,111130.0,14.75321847]
[1761290061103,0.57030743,111140.0,111130.0,14.75321847]
[1761290063696,0.26248388,111140.0,111130.0,14.75321847]
[1761290063894,0.57030743,111140.0,111130.0,14.75321847]
[1761290066271,0.53808563,111140.0,111130.0,14.75321847]
[1761290069631,0.53527441,111140.0,111130.0,14.75321847]
[1761290069831,0.53808554,111140.0,111130.0,14.75321847]
[1761290073386,0.23026199,111140.0,111130.0,14.75321847]
[1761290073798,0.23026199,111140.0,111130.0,14.78022361]
[1761290074450,0.20606635,111140.0,111130.0,14.78022361]